Cogmind - Beta 17.1 @@@ ROGUE MODE // 2026.09.10 @ 23:18:28 Player: CavedCold Result: Destroyed by G-47 Trooper with Particle Gun Performance ------------- Evolutions (2) 1000 Regions Visited (3) 600 Robots Destroyed (30) 150 Value Destroyed (782) 782 Prototype IDs (3) 60 Alien Tech Used (0) 0 Bonus (0) 0 TOTAL SCORE: 2592 Bonus ------- None Cogmind --------- Core Integrity 0/550 Matter 123/300 Energy 240/240 System Corruption 0% Temperature Cool (9) Movement Core (150) Ox2 Location -8/Materials Parts ------- > --- POWER (1) -------- Nuclear Core > --- PROPULSION (4) --- (None) > --- UTILITY (2) ------ Melee Analysis Suite > --- WEAPON (4) ------- (None) > --- INVENTORY (5) ---- Heat Sink Cooling System Targeting Computer Hacking Suite Particle Gun Peak State ------------ > --- POWER ------------ Nuclear Core > --- PROPULSION ------- Improved Hover Unit Airjet Airjet > --- UTILITY ---------- Compact Battery Improved Targeting Computer > --- WEAPON ----------- Heavy Particle Gun Advanced Beam Cannon Minigun Assault Cannon > --- INVENTORY -------- Heat Sink Cooling System Improved Sensor Array Targeting Computer Hacking Suite [Rating: 30] Favorites ----------- Power Improved Ion Engine Engine Improved Ion Engine Power Core Nuclear Core Propulsion Armored Wheel Leg Aluminum Leg Wheel Armored Wheel Hover Unit Airjet Utility Visual Processing Unit Device Heat Sink Storage Compact Battery Processor Visual Processing Unit Protection Medium Armor Plating Weapon Advanced Beam Cannon Energy Gun Beam Rifle Energy Cannon Advanced Beam Cannon Ballistic Gun Assault Rifle Ballistic Cannon Assault Cannon Build | -11 -10 -9 -8 ------- Run | Yrd Mat Mat Mat Slots Evolved 4 | . . 2 2 Power . | . . . . Propulsion 2 | . . 1 1 Utility . | . . . . Weapon 2 | . . 1 1 Parts Attached 37 | 6 5 8 18 Power 6 | 1 . 1 4 Engine 3 | 1 . 1 1 Core 3 | . . . 3 Reactor . | . . . . Propulsion 8 | 2 . 3 3 Treads . | . . . . Leg 2 | 2 . . . Wheel 3 | . . 3 . Hover 3 | . . . 3 Flight . | . . . . Utility 10 | 1 3 1 5 Device 4 | . 2 1 1 Storage 2 | 1 . . 1 Processor 3 | . 1 . 2 Hackware . | . . . . Protection 1 | . . . 1 Artifact . | . . . . Weapon 13 | 2 2 3 6 Energy Gun 5 | . . 1 4 Energy Cannon 2 | . . 2 . Ballistic Gun 5 | 2 2 . 1 Ballistic Cannon 1 | . . . 1 Launcher . | . . . . Special Weapon . | . . . . Impact Weapon . | . . . . Slashing Weapon . | . . . . Piercing Weapon . | . . . . Special Melee Weapon . | . . . . Unidentified Prototypes 3 | . . 1 2 Parts Lost 19 | . 6 1 12 Power 3 | . 1 . 2 Propulsion 4 | . 2 . 2 Utility 5 | . 1 1 3 Weapon 7 | . 2 . 5 Highest Loss Streak 6 | . 6 1 6 To Critical Strikes . | . . . . Average Backups 2 | . 1 1 3 Power . | . . . . Propulsion . | . . . . Utility 1 | . 1 1 2 Weapon . | . . . . Tool/Special . | . . . . Unused Backups 6 | . . 1 5 Power . | . . . . Propulsion 1 | . . 1 . Utility 4 | . . . 4 Weapon 1 | . . . 1 Tool/Special . | . . . . Average Slot Usage (%) 75 | . 85 78 67 Engine 7 | . 10 8 5 Core 1 | . . . 2 Leg 5 | . 21 . . Wheel 9 | . . 18 9 Hover 4 | . . . 10 Device 7 | . 12 9 3 Storage 2 | . 3 . 3 Processor 8 | . 10 11 6 Energy Gun 6 | . . 9 7 Energy Cannon 9 | . . 17 10 Ballistic Gun 10 | . 25 4 5 Ballistic Cannon 1 | . . . 3 Peak Build Rating 30 | 6 8 18 30 Average Rating 13 | 3 6 14 19 On Entrance 7 | . 6 5 18 Avg Prop Armor Cover (%) . | . . . . Naked Turns 3 | . . . 3 Heaviest Build 24 | 12 13 19 24 Greatest Support 34 | 20 20 34 34 Greatest Overweight (x) 5 | 2 . 3 5 Average Overweight (x) . | . . . . Largest Inventory Capacity 8 | 8 8 5 5 Average Capacity 5 | 7 5 5 5 Most Carried 5 | 2 3 4 5 Average Carried 2 | . 1 1 3 Final Capacity 8 | 8 5 5 5 Final Carried 5 | . 1 1 5 Class Distribution -------------------- 41% | Mutant 35% | Skirmisher 23% | Gunner Dominant Class ---------------- Mutant | -10/Materials Skirmisher | -9/Materials Gunner | -8/Materials Resources | -11 -10 -9 -8 ----------- Run | Yrd Mat Mat Mat Matter Collected 761 | 235 52 267 207 Remotely . | . . . . Salvage Created 963 | . 111 401 451 Parts 73 | . 10 27 36 Haulers Intercepted . | . . . . Recyclers Shooed 1 | . . . 1 Parts Field Recycled . | . . . . Retrieved Matter . | . . . . Parts Self-Destructed . | . . . . Prevented . | . . . . Parts Restored . | . . . . Kills | -11 -10 -9 -8 ------- Run | Yrd Mat Mat Mat Combat Hostiles Destroyed 20 | . 3 7 10 Guns 9 | . 3 2 4 Cannons 11 | . . 5 6 Classes Destroyed 8 | . 3 3 2 Builder 1 | . . 1 . Tunneler 1 | . . . 1 Operator 1 | . . . 1 Watcher 7 | . 1 4 2 Swarmer 8 | . 2 2 4 Grunt 6 | . 1 3 2 Brawler 1 | . . 1 . Sentry 5 | . . 1 4 Best Kill Streak 5 | . 2 3 5 Combat Bots Only 5 | . 1 3 5 Max Kills in Single Turn 2 | . 1 2 1 Gunslinging . | . . . . Exploded . | . . . . Melee . | . . . . Uniques/NPCs Destroyed . | . . . . Combat | -11 -10 -9 -8 -------- Run | Yrd Mat Mat Mat Hostile Shots Fired 235 | . 69 31 135 Missed 71 | . 20 11 40 Hits 164 | . 49 20 95 Melee 1 | . . 1 . Projectile 163 | . 49 19 95 Critical Strikes 4 | . 1 . 3 Damage Taken 2554 | . 534 264 1756 Core 695 | . 61 82 552 Absorbed by Shields . | . . . . Core Remaining (%) 84 | 100 75 79 . Volleys Fired 102 | . 29 35 38 Largest 4 | . 2 3 4 Hottest 192 | . 40 192 192 Shots Fired 254 | . 57 74 123 Gun 156 | . 57 33 66 Cannon 98 | . . 41 57 Launcher . | . . . . Special . | . . . . Kinetic 120 | . 57 18 45 Thermal 126 | . . 56 70 Explosive . | . . . . Electromagnetic 8 | . . . 8 Robot Hit Streak 15 | . 6 9 15 Robot Miss Streak 10 | . 10 5 7 Penetration Max . | . . . . Secondary Targets . | . . . . Shots Hit Robots 121 | . 27 40 54 Core Hits 47 | . 9 14 24 Critical Kills . | . . . . Critical Parts Destroyed . | . . . . Critical Strikes 3 | . . 1 2 Burn 1 | . . 1 . Blast 2 | . . . 2 Melee Attacks . | . . . . Impact . | . . . . Slashing . | . . . . Piercing . | . . . . Sneak Attacks . | . . . . Combat Hostiles . | . . . . Follow-up Attacks . | . . . . Damage Inflicted 2238 | . 373 649 1216 Guns 1183 | . 373 216 594 Cannons 1012 | . . 433 579 Explosions 43 | . . . 43 Melee . | . . . . Ramming . | . . . . Kinetic 907 | . 373 100 434 Thermal 1215 | . . 549 666 Explosive . | . . . . Electromagnetic 116 | . . . 116 Impact . | . . . . Slashing . | . . . . Piercing . | . . . . Highest Corruption . | . . . . Average Corruption . | . . . . Corruption Purged . | . . . . Corruption Blocked . | . . . . Overload Shots . | . . . . Overflow Damage 18 | . . 18 . Projectiles 18 | . . 18 . Explosions . | . . . . Melee . | . . . . Knockbacks 2 | . . . 2 Impact . | . . . . Kinetic 2 | . . . 2 Secondary . | . . . . Self-Inflicted Damage 24 | . . . 24 Shots 1 | . . . 1 Rammed . | . . . . Targets Rammed . | . . . . Kicked . | . . . . Crushed . | . . . . Highest Temperature 702 | . 8 390 702 Average Temperature 208 | . 3 138 248 Received Heat Transfer 843 | . 246 66 531 Effects 32 | . . 4 28 Shutdowns 6 | . . 1 5 Energy Bleed 4 | . . 1 3 Interference 6 | . . 2 4 Matter Decay 3 | . . . 3 Short Circuit 2 | . . . 2 Damage (minor) 2 | . . . 2 Damage (major) 8 | . . . 8 Damage (core) 1 | . . . 1 Siege Activations . | . . . . Martial Activations . | . . . . Shielding Activations . | . . . . Robots Disrupted . | . . . . Combat Hostiles . | . . . . Robots Corrupted . | . . . . Combat Hostiles . | . . . . Parts Fried . | . . . . Impact Corruptions . | . . . . Robots Melted . | . . . . Combat Hostiles . | . . . . Parts Melted 2 | . . 1 1 Heat Transferred 2505 | . . 1147 1358 Parts Sabotaged . | . . . . Parts Stolen . | . . . . Parts Stripped . | . . . . Power Chain Reactions 1 | . . . 1 Alert | -11 -10 -9 -8 ------- Run | Yrd Mat Mat Mat Maximum Alert Level . | . . . . Low Security (%) 100 | 100 100 100 100 Level 1 . | . . . . Level 2 . | . . . . Level 3 . | . . . . Level 4 . | . . . . Level 5 . | . . . . High Security . | . . . . Max Security . | . . . . Peak Influence 163 | . 62 124 163 Initial 43 | . . 3 43 Average 60 | . 20 45 106 Influence Increases 724 | . 133 234 357 Destroy 0b10 Robot/C 400 | . 60 140 200 Destroy 0b10 Robot/NC 50 | . 5 25 20 Destroy Leader 124 | . 22 38 64 Disable Machine 60 | . . 30 30 Destroy Structure 15 | . 1 1 13 Lose Combat Pursuer 75 | . 45 . 30 Influence Decreases 658 | . 123 140 395 Entered New Map 68 | . . 7 61 Time Decay 457 | . 110 133 214 Lost Part 133 | . 13 . 120 Squads Dispatched 3 | . 1 . 2 Investigation . | . . . . Extermination . | . . . . Reinforcement 3 | . 1 . 2 Assault . | . . . . Garrison . | . . . . Intercept . | . . . . Searches Triggered . | . . . . Construction Impeded 1 | . . . 1 Haulers Reinforced . | . . . . Active Scanning Responses . | . . . . Cargo Convoy Interrupts . | . . . . Stealth | -11 -10 -9 -8 --------- Run | Yrd Mat Mat Mat Distress Signals 6 | . 1 3 2 Communications Jammed . | . . . . Distress Signals . | . . . . Times Spotted 45 | . 8 19 18 Peak Tracking Total 9 | . 3 9 5 Tactical Retreats 4 | . 2 . 2 Traps | -11 -10 -9 -8 ------- Run | Yrd Mat Mat Mat Traps Triggered . | . . . . Indirectly . | . . . . Trap Hack Attempts . | . . . . Triggered . | . . . . Disarmed . | . . . . Reprogrammed . | . . . . Reused . | . . . . Traps Extracted . | . . . . Installed . | . . . . Triggered . | . . . . Machines | -11 -10 -9 -8 ---------- Run | Yrd Mat Mat Mat Machines Disabled 4 | . . 2 2 Max in Single Turn 1 | . . 1 1 Machines Repaired . | . . . . Machines Dismantled . | . . . . Machines Sabotaged . | . . . . Overloaded Fab Kills . | . . . . Hacking | -11 -10 -9 -8 --------- Run | Yrd Mat Mat Mat Machines Accessed 1 | . . 1 . Terminals . | . . . . Fabricators . | . . . . Repair Stations . | . . . . Recycling Units . | . . . . Scanalyzers 1 | . . 1 . Garrison Access . | . . . . Total Hacks 2 | . . 2 . Successful 2 | . . 2 . Failed . | . . . . Catastrophic . | . . . . Database Lockouts . | . . . . Manual . | . . . . Terminals . | . . . . Fabricators . | . . . . Repair Stations . | . . . . Recycling Units . | . . . . Scanalyzers 2 | . . 2 . Garrison Access . | . . . . Terminal Hacks . | . . . . Fabricator Hacks . | . . . . Repair Station Hacks . | . . . . Recycling Unit Hacks . | . . . . Scanalyzer 2 | . . 2 . Insert Component 1 | . . 1 . Analyze 1 | . . 1 . Garrison Access Hacks . | . . . . Unauthorized Hacks . | . . . . Terminals . | . . . . Fabricators . | . . . . Repair Stations . | . . . . Recycling Units . | . . . . Scanalyzers . | . . . . Garrison Access . | . . . . Data Cores Recovered 1 | . . . 1 Used . | . . . . Hacking Detections 1 | . . 1 . Full Trace Events . | . . . . Feedback Events . | . . . . Feedback Blocked . | . . . . Robot Schematics Acquired . | . . . . Robots Built . | . . . . Authchips . | . . . . Time . | . . . . Total Robot Build Rating . | . . . . Part Schematics Acquired 1 | . . 1 . Parts Built . | . . . . Authchips . | . . . . Time . | . . . . Total Part Build Rating . | . . . . Part Studies Acquired . | . . . . Parts Repaired . | . . . . Time . | . . . . Parts Recycled . | . . . . Recycled Matter . | . . . . Retrieved Matter . | . . . . Retrieved Components . | . . . . Parts Scanalyzed 1 | . . 1 . Part Schematics Acquired 1 | . . 1 . Parts Damaged 1 | . . 1 . Bothacking | -11 -10 -9 -8 ------------ Run | Yrd Mat Mat Mat Used RIF Installer . | . . . . Robots Hacked . | . . . . Non-combat . | . . . . Combat . | . . . . Robot Hacks Applied . | . . . . Relay Couplers Released . | . . . . Fabnet Peak Effective % . | . . . . Robots Rewired . | . . . . Allies Hacked . | . . . . Hacks Repelled . | . . . . Allies | -11 -10 -9 -8 -------- Run | Yrd Mat Mat Mat Total Allies . | . . . . Largest Group . | . . . . Highest-Rated Group . | . . . . Highest-Rated Ally . | . . . . Total Orders . | . . . . Ally Attacks . | . . . . Total Damage . | . . . . Kills . | . . . . Allies Corrupted . | . . . . Allies Melted . | . . . . Intel | -11 -10 -9 -8 ------- Run | Yrd Mat Mat Mat Active Infowar (turns) 713 | . 277 321 115 Optics 550 | . 212 321 17 Sensors 223 | . 125 . 98 Seismic 172 | . 138 34 . Robot Analysis Total . | . . . . Derelict Logs Recovered . | . . . . Drone Launches . | . . . . Drone Recoveries . | . . . . Exploration | -11 -10 -9 -8 ------------- Run | Yrd Mat Mat Mat Turns Passed 1112 | 59 289 321 443 Spaces Moved 857 | 43 221 257 336 Core 227 | 18 106 65 38 Treads . | . . . . Legs 140 | 25 115 . . Wheels 304 | . . 192 112 Hover 186 | . . . 186 Flight . | . . . . Fastest Speed 50 | 50 50 50 50 Average Speed 83 | 110 86 81 79 Slowest Speed 300 | 150 120 200 300 Overloaded Moves . | . . . . Propulsion Burnouts . | . . . . Robots Hopped . | . . . . Potential Cave-ins . | . . . . Cave-ins Triggered . | . . . . Exploration Rate (%) 21 | 3 35 24 22 Regions Visited 3 Branch Regions . Pre-discovered Areas . | . . . . Known Exits Taken . | . . . . Unknown Exits Taken 3 | 1 1 1 . Scrap Searched . | . . . . Spaces Dug . | . . . . Terrain Destroyed 8 | . . . 8 Melee . | . . . . Projectile 4 | . . . 4 AOE 4 | . . . 4 Terrain Rammed . | . . . . Walls Destroyed . | . . . . Machines Disabled . | . . . . Actions | -11 -10 -9 -8 --------- Run | Yrd Mat Mat Mat Total 1058 | 54 260 311 433 Wait 8 | . . . 8 Move 854 | 42 220 256 336 Hop . | . . . . Pick Up 41 | 6 5 9 21 Fast Attach 2 | . . . 2 Attach 28 | 6 4 7 11 Detach . | . . . . Swap 8 | . 2 1 5 Drop 15 | . . 3 12 Fire 102 | . 29 35 38 Melee . | . . . . Ram . | . . . . Kick . | . . . . Crush . | . . . . Escape Stasis . | . . . . Rewire . | . . . . Trap . | . . . . Miscellaneous . | . . . . Route ------- -11/Scrapyard -10/Materials (discovered 2 exits: *Mat / [*Min]) -9/Materials -8/Materials History --------- Turn | Location | Event 14 | -11/Scrapyard | Discovered new exit (range 15) 60 | -11/Scrapyard | Entered Materials 239 | -10/Materials | Discovered new exit (range 16) 301 | -10/Materials | Build established: Mutant 322 | -10/Materials | Lost 6 parts (1p2n1u2w) 326 | -10/Materials | Discovered new exit (range 18) 349 | -10/Materials | Entered another Materials area 349 | -9/Materials | Evolved 2 slots: Propulsion x1, Weapon x1 662 | -9/Materials | Discovered new exit (range 10) 670 | -9/Materials | Entered another Materials area 670 | -8/Materials | Evolved 2 slots: Propulsion x1, Weapon x1 976 | -8/Materials | Core integrity fell below 50% 1007 | -8/Materials | Lost 4 parts (2n1u1w) 1032 | -8/Materials | Core integrity fell below 20% 1113 | -8/Materials | Destroyed by G-47 Trooper with Particle Gun Last Messages --------------- (-40). 01046_ Dropped Airjet. 01048_ Overheating: Energy bleed (-1). 01051_ Hvy. EM Shotgun destroyed. 01055_ Acquired Hvy. EM Shotgun. [Achievement: Hydra] 01057_ Dropped Imp. Sensor Array. 01059_ Critical hit (Burn: +37). 01060_ Acquired Med. Armor Plating. 01064_ Acquired 46 matter. 01068_ Acquired Lgt. Nuclear Core. 01075_ Hvy. EM Shotgun destroyed. 01079_ Critical hit (Burn: +37). 01079_ Acquired Corrupted Particle Gun. 01081_ Med. Armor Plating destroyed. 01083_ Acquired 34 matter. 01092_ Lgt. Nuclear Core destroyed. 01092_ Critical hit (Burn: +37). 01095_ Acquired Nuclear Core. 01100_ Acquired Melee Analysis Suite. Map ----- +----------------------------------------------------+ | ?????????????????????????????? | | ?????????????????????????????? | | ?????????????????????????????? | | ?????????????????????????????? | | ?????????????????????????????? | | ?????????????????????????????? | | ?????????????????????????????? | | ?????????????????????????????? | | ?????????????????????????????? | | ?????????????????????????????? | | ?????????????????????????????? | | ?????????????????????????????? | | ?????????????????????????????? | | ?????????????????????????????? | | ?????????????????????????????? | | ?????????????????????????????? | | ?????????????????????????????? | | ?????????????????????????????? | | ?????????????????????????????? | | ?????????????????????????????? | | ?????????????????????????????? | | ?????????????????????????????? | | ???########??????????????????? | | ???# #??????????????????? | | ???# #??????????????????? | | ???# @ #??????????????????? | | ???#* #??????????????????? | | ???# #??????????????????? | | ???# #??????????????????? | | ???#####g##??????????????????? | | ???????# #???????????????????? | | ????#### #???????????????????? | | #####%## #???????????????????? | | # % =# #???????????????????? | | # """ # #???????????????????? | | # """ /# #????###????????????? | | # """ # #??### #????????????? | | # "" " #??#%""##???????????? | | # " # ####% #???????????? | | # + % !#???????????? | | # # ] % #???????????? | | # =["# ### #???????????? | | # "# #?## ##???????????? | | # ! "# #??# #????????????? | | #[[ ## #??# "#???????????? | | #[= ## #??# #########?#### | | ######### #??# # """ [ ### | | ?????##?#+#??# # "T" + | | ?????# % " # ### | | ?????# !! + / #?### | +----------------------------------------------------+ Best States ------------- Heat Dissipation 41 Energy Generation 14 Energy Capacity 465 Matter Stores 300 Matter Capacity 300 Sight Range 18 Robot Scan Range 15 Terrain Scan Density 10 Armor Coverage 225 Evasion (%) 55 Targeting Accuracy 6 Melee Accuracy 5 Item Schematics ----------------- VTOL Module | -9/Materials | Scanalyzed Robot Schematics ------------------ None Fabricated ------------ Nothing Repaired ---------- Nothing Studied --------- None Alien Tech Used ----------------- None Achievements -------------- Hydra Spot Them First Challenges ------------ None Game ------ Seed VampiricCompositeDistortion Manual? 0 Play Time 00:19:06 Cumulative 2.8 hours Start 2026.09.10 @ 23:01:01 End 2026.09.10 @ 23:18:28 Sessions 1 Manual Loads 0 Difficulty Rogue Special Mode None Game No. 6 Rogue 6 Adventurer 0 Explorer 0 Win Type - Total 0 Types 0/0/0/0/0/0/0/0/0/0 Lore% 2 Gallery% 7 Achievement% 6 Wizard Run 0 Options --------- Layout 1 ASCII 0 Keyboard 0 Movement Mouse Keybinds 0 Fullscreen 1 Font 32/SmallcapsGlow Map View 50x35 Zoom Use 0% Tactical HUD 1 Map Filters NONE Filters NONE Steam 1 RUN: 430f2a09-9305-4c14-856b-d5750b6ab90e